bitfinex/quotes_BTCUSD_20230120
["timestamp","ask_amount","ask_price","bid_price","bid_amount"]
[1674249829678,0.0119928,22281.0,22280.0,0.710733]
[1674249830468,0.00464037,22286.0,22281.0,0.1127]
[1674249830735,0.00464037,22286.0,22285.0,0.112]
[1674249830989,0.00464037,22286.0,22285.0,1.758196]
[1674249832231,0.00464037,22286.0,22285.0,2.206928]
[1674249832743,0.00464037,22286.0,22285.0,2.319528]
[1674249833006,0.01186895,22289.0,22285.0,2.57535178]
[1674249833267,0.01186895,22289.0,22288.0,0.1127]
[1674249833517,0.01186895,22289.0,22288.0,1.907384]
[1674249833776,0.01186895,22289.0,22288.0,2.207384]
[1674249834334,0.01200593,22292.0,22288.0,2.66185715]
[1674249834805,0.01200593,22292.0,22289.0,0.45]
[1674249834807,0.01200593,22292.0,22291.0,0.1127]
[1674249835064,0.01200593,22292.0,22291.0,0.561311]
[1674249835310,0.01200593,22292.0,22291.0,0.861311]
[1674249835557,0.01200593,22292.0,22291.0,1.309922]
[1674249836048,0.01200593,22292.0,22291.0,1.459922]
[1674249836818,0.01200593,22292.0,22291.0,1.309922]
[1674249837318,0.01200593,22292.0,22291.0,1.197222]
[1674249838127,0.01200593,22292.0,22291.0,0.897222]
[1674249839132,0.01200593,22292.0,22291.0,1.197222]
[1674249840399,0.01200593,22292.0,22291.0,0.897222]
[1674249841927,0.01200593,22292.0,22291.0,1.347222]
[1674249842185,0.01200593,22292.0,22291.0,1.197222]
[1674249842680,0.01200593,22292.0,22291.0,0.887222]
[1674249843457,0.01200593,22292.0,22291.0,1.149222]
[1674249844497,0.01200593,22292.0,22291.0,1.449222]
[1674249845493,0.19702836,22292.0,22291.0,0.887222]
[1674249845766,0.05420593,22292.0,22291.0,0.887222]
[1674249846032,0.01200593,22292.0,22291.0,0.887222]
[1674249846521,0.05420593,22292.0,22291.0,0.438611]
[1674249846775,0.37666393,22292.0,22291.0,0.438611]
[1674249847035,0.37666393,22292.0,22289.0,0.448636]
[1674249847389,0.52754443,22291.0,22286.0,0.448709]
[1674249847566,0.49948043,22290.0,22285.0,0.448718]
[1674249847828,0.310969,22289.0,22286.0,0.448706]
[1674249848086,0.18502243,22291.0,22286.0,0.448706]
[1674249848343,0.01200593,22292.0,22287.0,0.15]
[1674249848599,0.01200593,22292.0,22288.0,0.897322]
[1674249848856,0.01200593,22292.0,22289.0,0.3]
[1674249849115,0.01200593,22292.0,22290.0,0.897262]
[1674249849360,0.05,22291.0,22290.0,0.897262]
[1674249849920,0.046,22291.0,22290.0,0.897262]
[1674249850666,0.046,22291.0,22290.0,1.197262]
[1674249851169,0.04019941,22291.0,22290.0,1.61193737]
[1674249851419,4.1e-07,22291.0,22290.0,1.571662]
[1674249851672,0.01200593,22292.0,22290.0,1.571662]
[1674249851933,0.01200593,22292.0,22291.0,0.4127]
[1674249852193,0.01200593,22292.0,22291.0,1.011311]
[1674249852425,9.3e-07,22292.0,22291.0,1.011311]
[1674249853410,9.3e-07,22292.0,22291.0,0.561311]
[1674249853653,9.3e-07,22292.0,22291.0,0.448611]
[1674249854155,0.05000093,22292.0,22291.0,0.448611]
[1674249854407,0.05000093,22292.0,22291.0,0.560511]
[1674249854916,0.05000093,22292.0,22291.0,0.710511]
[1674249855178,0.05000093,22292.0,22291.0,0.667011]
[1674249855709,0.05000093,22292.0,22291.0,0.967011]
[1674249855969,0.01160041,22295.0,22292.0,0.0171023]
[1674249856216,0.01160041,22295.0,22294.0,0.0684]
[1674249856451,0.01160041,22295.0,22294.0,0.816951]
[1674249856700,0.01160041,22295.0,22294.0,0.516951]
[1674249856949,0.01160041,22295.0,22294.0,0.585051]
[1674249857207,0.01160041,22295.0,22294.0,0.735051]
[1674249857716,4.1e-07,22295.0,22294.0,0.735051]
[1674249857976,0.58476768,22313.0,22294.0,3.08952415]
[1674249858236,0.58476768,22313.0,22296.0,0.89702]
[1674249858237,1.103,22310.0,22296.0,0.89702]
[1674249858487,0.18502243,22309.0,22297.0,1.65657315]
[1674249858743,0.0126036,22304.0,22300.0,1.793672]
[1674249858991,0.0126036,22304.0,22301.0,0.3681]
[1674249859244,0.0126036,22304.0,22302.0,0.89678]
[1674249859495,0.15,22309.0,22303.0,0.3684]
[1674249859778,0.15,22312.0,22305.0,0.0684]
[1674249860076,0.2184,22312.0,22307.0,0.896574]
[1674249860257,0.2184,22312.0,22305.0,0.448324]
[1674249860258,0.0684,22310.0,22305.0,0.448324]
[1674249860505,0.320784,22309.0,22306.0,0.448292]
[1674249860752,0.31676,22308.0,22306.0,0.448292]
[1674249860997,0.471634,22307.0,22305.0,0.448324]
[1674249861242,0.15,22307.0,22305.0,0.448324]
[1674249861500,0.0684,22310.0,22305.0,0.448324]
[1674249861989,1.1309,22312.0,22305.0,0.448324]
[1674249861990,0.2179,22312.0,22305.0,0.448324]
[1674249862238,0.40292243,22312.0,22306.0,0.15]
[1674249862492,0.40292243,22312.0,22307.0,1.344832]
[1674249862493,0.2179,22312.0,22307.0,1.344832]
[1674249862742,0.0679,22312.0,22307.0,1.344832]
[1674249862998,0.25292243,22312.0,22307.0,1.344832]
[1674249863506,0.18,22313.0,22307.0,1.344832]
[1674249863763,0.03,22313.0,22307.0,1.344832]
[1674249864003,0.21502243,22313.0,22307.0,1.344832]
[1674249864759,0.21502243,22313.0,22307.0,1.341862]
[1674249865006,0.18502243,22312.0,22307.0,1.341862]
[1674249865261,0.18502243,22311.0,22307.0,1.341862]
[1674249865506,0.18502243,22311.0,22307.0,1.341878]
[1674249866009,0.307143,22310.0,22307.0,1.341878]
[1674249866262,0.18,22313.0,22307.0,1.341878]
[1674249866506,0.03,22313.0,22307.0,1.341878]
[1674249866749,0.21502243,22313.0,22307.0,1.341878]
[1674249867293,0.0684,22311.0,22307.0,0.893592]
[1674249867537,0.50491543,22310.0,22307.0,6e-05]
[1674249867786,0.384335,22309.0,22307.0,6e-05]
[1674249868037,0.297789,22308.0,22307.0,6e-05]
[1674249868827,0.2184,22311.0,22307.0,6e-05]
[1674249869069,0.305371,22310.0,22307.0,6e-05]
[1674249869318,0.2184,22311.0,22307.0,0.448335]
[1674249869571,0.18,22313.0,22307.0,0.448335]
[1674249870346,0.36502243,22313.0,22307.0,0.448335]
[1674249871347,0.07157361,22310.0,22307.0,0.448335]
[1674249871847,0.18502243,22310.0,22307.0,0.448335]
[1674249872089,0.42557,22313.0,22307.0,0.448335]
[1674249872340,0.18502243,22312.0,22307.0,0.448275]
[1674249872597,0.399073,22311.0,22307.0,0.448275]
[1674249872843,0.0684,22309.0,22307.0,0.448275]
[1674249873100,0.0684,22309.0,22307.0,0.24444044]
[1674249873349,0.319282,22308.0,22306.0,0.448359]
[1674249873601,0.0684,22309.0,22306.0,0.448359]
[1674249874612,0.0684,22309.0,22306.0,0.22487341]
[1674249874901,0.0677,22311.0,22306.0,0.22487341]
[1674249875160,0.0977,22313.0,22307.0,0.45]
[1674249875383,0.0977,22313.0,22308.0,1.344759]
[1674249876165,0.28272243,22313.0,22308.0,0.896506]
[1674249876405,0.310073,22312.0,22308.0,0.896506]
[1674249876639,0.28272243,22313.0,22308.0,0.896506]
[1674249876911,0.28272243,22313.0,22306.0,6e-05]
[1674249876912,0.18502243,22311.0,22306.0,6e-05]
[1674249877168,1.84049858,22310.0,22306.0,6e-05]
[1674249877418,0.52359843,22309.0,22308.0,6e-05]
[1674249877737,1.73482058,22309.0,22298.0,0.448461]
[1674249877953,0.0683,22303.0,22298.0,0.448461]
[1674249878207,0.51147843,22302.0,22298.0,0.448461]
[1674249878456,0.50108843,22301.0,22298.0,0.448461]
[1674249878727,0.50108843,22301.0,22294.0,0.448548]
[1674249878728,0.50773743,22300.0,22294.0,0.448548]
[1674249879018,0.56908043,22299.0,22294.0,0.448548]
[1674249879262,0.18502243,22301.0,22295.0,0.516921]
[1674249879536,0.18502243,22301.0,22296.0,0.15]
[1674249879797,0.18502243,22301.0,22296.0,0.448504]
[1674249880077,1.37213,22304.0,22295.0,0.511921]
[1674249880078,0.18502243,22300.0,22295.0,0.443521]
[1674249881391,0.0677,22302.0,22295.0,0.443521]
[1674249881662,0.25272243,22302.0,22297.0,0.15]
[1674249881933,1.1923,22304.0,22298.0,0.44846]
[1674249882186,1.1553,22307.0,22299.0,0.3]
[1674249882433,1.1553,22307.0,22301.0,0.896792]
[1674249882721,1.1553,22307.0,22302.0,0.3]
[1674249882984,0.0684,22309.0,22303.0,1.046726]
[1674249883231,0.0684,22309.0,22304.0,0.3]
[1674249883478,0.0684,22309.0,22305.0,0.448319]
[1674249883736,0.0684,22309.0,22305.0,0.446319]
[1674249884021,0.312227,22308.0,22305.0,0.446319]
[1674249884271,0.319571,22307.0,22304.0,0.448336]
[1674249884516,0.29909,22306.0,22303.0,0.448364]
[1674249884765,0.313814,22305.0,22303.0,0.448364]
[1674249885025,0.15,22308.0,22303.0,0.448364]
[1674249885291,0.0684,22305.0,22302.0,0.448379]
[1674249885637,0.0684,22303.0,22300.0,0.448423]
[1674249886066,0.25342243,22303.0,22300.0,0.448423]
[1674249886597,0.0684,22303.0,22300.0,0.448423]
[1674249887116,0.18502243,22302.0,22298.0,0.448457]
[1674249887370,0.50335543,22301.0,22296.0,0.448502]
[1674249887634,0.18502243,22300.0,22296.0,0.448502]
[1674249887905,0.18502243,22299.0,22295.0,0.45547502]
[1674249888252,0.15,22300.0,22295.0,0.45547502]
[1674249888253,0.33502243,22300.0,22295.0,0.45547502]
[1674249889276,0.15,22300.0,22295.0,0.45547502]
[1674249889779,0.33502243,22300.0,22295.0,0.45547502]
[1674249890555,0.18502243,22299.0,22295.0,0.45547502]
[1674249891032,0.0684,22301.0,22295.0,0.45547502]
[1674249891033,0.18502243,22298.0,22295.0,0.45547502]
[1674249891281,0.18502243,22297.0,22295.0,0.00695502]
[1674249891542,0.25332243,22298.0,22295.0,0.00695502]
[1674249891806,0.0683,22298.0,22295.0,0.00695502]
[1674249892316,0.15,22299.0,22294.0,0.20739146]
[1674249892569,0.33502243,22299.0,22294.0,0.20739146]
[1674249892864,0.50167143,22298.0,22291.0,0.06833994]
[1674249893121,0.50167143,22298.0,22291.0,0.44914994]
[1674249893122,0.49825943,22297.0,22291.0,0.44914994]
[1674249893429,0.068,22298.0,22291.0,0.44914994]
[1674249893430,0.18502243,22296.0,22291.0,0.44914994]
[1674249893611,0.18502243,22295.0,22291.0,0.44914994]
[1674249894389,0.068,22298.0,22291.0,0.44914994]
[1674249894631,0.25302243,22298.0,22292.0,0.15]
[1674249894878,0.25302243,22298.0,22291.0,0.44914994]
[1674249895142,0.18502243,22297.0,22292.0,0.448585]
[1674249895391,0.068,22298.0,22292.0,0.448585]
[1674249895637,0.25302243,22298.0,22292.0,0.448585]
[1674249896622,0.18502243,22297.0,22292.0,0.448585]
[1674249896875,0.311475,22296.0,22292.0,0.448585]
[1674249897124,0.18502243,22297.0,22292.0,0.448585]
[1674249897380,0.068,22298.0,22292.0,0.448585]
[1674249897634,0.18502243,22298.0,22293.0,0.3]
[1674249897885,0.15,22299.0,22294.0,0.448539]
[1674249898389,0.3202,22298.0,22294.0,0.448539]
[1674249898642,0.324126,22297.0,22294.0,0.448539]
[1674249898912,0.15,22300.0,22294.0,0.448539]
[1674249899427,0.33502243,22300.0,22294.0,0.448539]
[1674249900176,0.0684,22303.0,22295.0,0.3]
[1674249900427,0.24132243,22303.0,22297.0,0.896967]
[1674249900687,0.0563,22303.0,22297.0,0.896967]
[1674249901209,0.24132243,22303.0,22298.0,0.45]
[1674249901458,0.0563,22303.0,22298.0,0.448461]
[1674249901730,0.2184,22305.0,22298.0,0.448461]
[1674249902001,0.40342243,22305.0,22299.0,0.45]
[1674249902257,0.2184,22305.0,22300.0,0.896828]
[1674249902511,0.2184,22305.0,22301.0,0.3]
[1674249902769,0.2184,22305.0,22301.0,0.448393]
[1674249903019,0.2178,22308.0,22301.0,0.448393]
[1674249903286,0.40282243,22308.0,22301.0,0.448393]
[1674249903557,0.48442593,22308.0,22301.0,0.448393]
[1674249903787,0.40282243,22308.0,22301.0,0.448393]
[1674249904052,0.18502243,22307.0,22301.0,0.448393]
[1674249905322,0.18502243,22307.0,22302.0,0.093637]
[1674249905571,0.0678,22308.0,22303.0,0.44836]
[1674249906107,0.25282243,22308.0,22303.0,0.44836]
[1674249906372,0.325919,22307.0,22303.0,0.44836]
[1674249906631,0.369469,22306.0,22302.0,0.542011]
[1674249906884,0.301714,22305.0,22302.0,0.088637]
[1674249907153,0.297826,22304.0,22302.0,0.088637]
[1674249907437,0.326373,22303.0,22302.0,0.088637]
[1674249907685,0.068,22306.0,22302.0,0.088637]
[1674249907945,0.15,22305.0,22301.0,0.33355384]
[1674249908199,0.308584,22304.0,22301.0,0.33355384]
[1674249908458,0.50796243,22303.0,22298.0,0.448465]
[1674249908771,0.64795743,22302.0,22298.0,0.448465]
[1674249909027,0.320508,22301.0,22296.0,0.448508]
[1674249909287,0.325916,22300.0,22296.0,0.448508]
[1674249909544,0.2184,22302.0,22296.0,0.448508]
[1674249910055,0.40342243,22302.0,22296.0,0.448508]
[1674249910562,0.320365,22301.0,22295.0,0.448523]
[1674249910806,0.18502243,22300.0,22296.0,0.448499]
[1674249911388,0.2184,22302.0,22296.0,0.448499]
[1674249911574,0.40342243,22302.0,22296.0,0.448499]
[1674249911840,0.318023,22301.0,22296.0,0.448499]
[1674249912097,0.218,22304.0,22296.0,0.448499]
[1674249912343,0.40302243,22304.0,22297.0,0.3]
[1674249912610,0.40302243,22304.0,22299.0,0.896896]
[1674249912851,0.218,22304.0,22299.0,0.896896]
[1674249913346,0.40302243,22304.0,22299.0,0.896896]
[1674249913616,0.309397,22303.0,22299.0,0.896896]
[1674249913861,0.49832943,22302.0,22299.0,0.896896]
[1674249914117,0.0684,22300.0,22293.0,0.448551]
[1674249914370,0.57117043,22299.0,22293.0,0.448551]
[1674249914638,0.51163043,22298.0,22292.0,0.45572611]
[1674249914926,0.57973943,22297.0,22292.0,0.00714411]
[1674249915179,0.48677743,22296.0,22292.0,0.00714411]
[1674249915436,0.0684,22294.0,22292.0,0.00714411]
[1674249915702,0.294123,22293.0,22292.0,0.00714411]
[1674249915945,0.47914543,22293.0,22292.0,0.00714411]
[1674249916212,0.294123,22293.0,22292.0,0.00714411]
[1674249916670,0.53039773,22293.0,22292.0,4.411e-05]
[1674249916673,0.4137753,22293.0,22292.0,4.411e-05]
[1674249916932,1.07041858,22293.0,22292.0,4.411e-05]
[1674249917198,1.01829616,22293.0,22292.0,4.411e-05]
[1674249917455,2.26376808,22293.0,22292.0,4.411e-05]
[1674249917705,2.41376808,22293.0,22292.0,4.411e-05]
[1674249917971,2.4136585,22293.0,22292.0,4.411e-05]
[1674249918241,2.17615758,22293.0,22292.0,4.411e-05]
[1674249918753,1.87615758,22293.0,22292.0,4.411e-05]
[1674249919024,1.61685758,22293.0,22292.0,4.411e-05]
[1674249919281,1.91685758,22293.0,22292.0,4.411e-05]
[1674249919788,1.87665758,22293.0,22292.0,4.411e-05]
[1674249920049,2.29385464,22293.0,22292.0,4.411e-05]
[1674249920315,2.59385464,22293.0,22292.0,4.411e-05]
[1674249921610,0.15,22292.0,22291.0,0.00049868]
[1674249921834,2.59049051,22292.0,22291.0,8.68e-06]
[1674249923621,2.59049051,22292.0,22286.0,0.00695502]
[1674249923622,2.59049051,22292.0,22286.0,0.0059637]
[1674249923870,0.1368,22287.0,22286.0,0.0059637]
[1674249924131,1.53787358,22287.0,22286.0,0.0059637]
[1674249924414,0.898378,22287.0,22286.0,0.0059637]
[1674249924667,0.49790843,22287.0,22286.0,0.0059637]
[1674249924944,0.42933264,22287.0,22286.0,0.0059637]
[1674249925200,0.76735915,22287.0,22286.0,0.0059637]
[1674249925695,1.06735915,22287.0,22286.0,0.0059637]
[1674249926212,0.76735915,22287.0,22286.0,0.0059637]
[1674249926497,0.91735915,22287.0,22286.0,0.0059637]
[1674249926788,1.18866019,22287.0,22286.0,0.0059637]
[1674249926991,1.02985915,22287.0,22286.0,0.0059637]
[1674249927775,0.312886,22287.0,22286.0,0.0059637]
[1674249929026,0.425686,22287.0,22286.0,0.0059637]
[1674249929287,1.03015915,22287.0,22286.0,0.0059637]
[1674249929537,1.19304117,22287.0,22286.0,0.0059637]
[1674249929798,1.49304117,22287.0,22286.0,0.0059637]
[1674249930549,1.49304117,22287.0,22286.0,3.7e-06]
[1674249930796,1.92084117,22287.0,22286.0,3.7e-06]
[1674249931056,1.45795915,22287.0,22286.0,3.7e-06]
[1674249932622,1.14245915,22287.0,22286.0,3.7e-06]
[1674249933133,0.91735915,22287.0,22286.0,3.7e-06]
[1674249933389,1.21735915,22287.0,22286.0,3.7e-06]
[1674249934175,1.50369696,22287.0,22286.0,3.7e-06]
[1674249934447,1.21735915,22287.0,22285.0,0.00600191]
[1674249934669,1.06844215,22286.0,22285.0,0.00600191]
[1674249934930,2.37998841,22286.0,22285.0,1.91e-06]
[1674249935192,2.37998841,22286.0,22283.0,0.00708578]
[1674249935193,2.49178841,22286.0,22283.0,0.00708578]
[1674249935461,2.49178841,22286.0,22283.0,5.78e-06]
[1674249935462,0.93129215,22285.0,22283.0,5.78e-06]
[1674249935733,2.06762715,22284.0,22283.0,5.78e-06]
[1674249936480,2.22722715,22284.0,22283.0,5.78e-06]
[1674249938006,1.76762715,22284.0,22283.0,5.78e-06]
[1674249938252,2.06762715,22284.0,22283.0,5.78e-06]
[1674249939030,1.76762715,22284.0,22283.0,5.78e-06]
[1674249939295,2.71216617,22284.0,22282.0,0.0076973]
[1674249939613,1.20977615,22283.0,22282.0,1.308e-05]
[1674249939817,1.65854815,22283.0,22282.0,1.308e-05]
[1674249940384,1.65854815,22283.0,22274.0,0.8479968]
[1674249940652,0.50088343,22282.0,22276.0,0.1128]
[1674249940889,0.45447315,22283.0,22276.0,0.1128]
[1674249940890,0.49615543,22281.0,22276.0,0.1128]
[1674249941178,0.18502243,22281.0,22277.0,0.15]
[1674249941470,0.45447315,22283.0,22277.0,0.15]
[1674249941718,0.63949558,22283.0,22277.0,0.15]
[1674249941982,0.315832,22282.0,22277.0,0.15]
[1674249942290,0.18502243,22282.0,22277.0,0.598885]
[1674249942788,0.18502243,22282.0,22277.0,0.448885]
[1674249944138,0.21852467,22282.0,22277.0,0.448885]
[1674249944391,0.21852467,22282.0,22276.0,0.561699]
[1674249944663,0.95071758,22281.0,22274.0,0.68902701]
[1674249944931,0.63949558,22280.0,22274.0,0.68902701]
[1674249945147,0.64745543,22279.0,22274.0,0.68902701]
[1674249945435,0.48864243,22278.0,22274.0,0.68902701]
[1674249945698,0.326524,22277.0,22274.0,0.00814021]
[1674249945972,0.320383,22276.0,22274.0,0.00814021]
[1674249946193,0.319533,22275.0,22274.0,0.00814021]
[1674249946754,0.17326,22278.0,22272.0,0.25385989]
[1674249947008,0.18502243,22277.0,22272.0,0.25385989]
[1674249947582,0.338919,22276.0,22272.0,0.25385989]
[1674249947833,0.324,22275.0,22272.0,0.25385989]
[1674249948096,0.310712,22274.0,22271.0,0.1118]
[1674249948347,0.324269,22273.0,22270.0,0.86183738]
[1674249948602,0.18502243,22273.0,22270.0,0.86183738]
[1674249948876,0.17474,22276.0,22270.0,0.00803738]
[1674249949140,0.46751436,22276.0,22270.0,0.00803738]
[1674249949395,0.310674,22275.0,22270.0,0.00803738]
[1674249949648,0.63520743,22274.0,22270.0,0.00803738]
[1674249949926,0.75585315,22273.0,22270.0,0.00803738]
[1674249950237,0.56671456,22272.0,22270.0,0.00803738]
[1674249950494,0.75745015,22271.0,22270.0,0.00803738]
[1674249950748,0.302977,22271.0,22270.0,0.00803738]
[1674249951511,0.32502,22274.0,22270.0,0.00803738]
[1674249951765,0.45447315,22273.0,22270.0,0.00803738]
[1674249952029,1.22183815,22272.0,22270.0,0.00803738]
[1674249952286,0.470438,22271.0,22270.0,0.00803738]
[1674249952559,0.92491115,22271.0,22270.0,0.00803738]
[1674249952828,1.33771115,22271.0,22270.0,0.00803738]
[1674249953364,1.03771115,22271.0,22270.0,3.738e-05]
[1674249953641,1.393479,22271.0,22270.0,3.738e-05]
[1674249953916,1.33771115,22271.0,22270.0,3.738e-05]
[1674249955552,1.03771115,22271.0,22270.0,3.738e-05]
[1674249956021,1.33771115,22271.0,22270.0,3.738e-05]
[1674249956839,1.22491115,22271.0,22270.0,3.738e-05]
[1674249957837,1.22491115,22271.0,22268.0,0.00764453]
[1674249958086,0.15,22269.0,22261.0,0.1514715]
[1674249958345,0.50856543,22268.0,22260.0,0.449221]
[1674249958598,0.18502243,22267.0,22264.0,0.1119]
[1674249958861,0.18502243,22270.0,22265.0,0.012675]
[1674249959113,0.15,22271.0,22265.0,0.15]
[1674249959392,0.15,22271.0,22264.0,0.561046]
[1674249959632,0.33502243,22271.0,22264.0,0.561046]
[1674249959883,0.18502243,22270.0,22264.0,0.1119]
[1674249960138,0.18502243,22269.0,22262.0,0.449177]
[1674249960429,1.08857658,22268.0,22261.0,0.12106085]
[1674249960661,1.11013154,22267.0,22261.0,0.00906085]
[1674249960907,0.51383743,22266.0,22261.0,0.00906085]
[1674249961157,0.64852743,22265.0,22261.0,0.00906085]
[1674249961377,0.310799,22264.0,22261.0,0.00906085]
[1674249961631,0.15,22266.0,22261.0,0.00906085]
[1674249961893,0.15,22267.0,22261.0,0.12096085]
[1674249962140,0.29045853,22266.0,22261.0,0.00906085]
[1674249962390,1.05357315,22267.0,22261.0,0.00906085]
[1674249962391,0.317692,22265.0,22261.0,0.00906085]
[1674249962650,0.15,22267.0,22261.0,0.00906085]
[1674249962928,0.18502243,22267.0,22261.0,0.57016885]
[1674249963160,0.18502243,22267.0,22262.0,0.15]
[1674249963424,0.10232,22268.0,22263.0,0.46185]
[1674249963685,0.10232,22268.0,22263.0,0.561271]
[1674249963925,0.28734243,22268.0,22263.0,0.561271]
[1674249964427,0.66822982,22267.0,22263.0,0.1121]
[1674249964686,0.30641,22266.0,22261.0,0.00906085]
[1674249964939,0.50730243,22265.0,22261.0,0.00906085]
[1674249965197,0.323782,22264.0,22261.0,0.00906085]
[1674249965482,0.317568,22263.0,22261.0,0.00906085]
[1674249965742,0.18502243,22265.0,22261.0,0.00906085]
[1674249965996,0.33502243,22266.0,22261.0,0.00906085]
[1674249966247,0.33502243,22265.0,22260.0,0.10258585]
[1674249966532,0.51367943,22264.0,22260.0,0.10258585]
[1674249966802,0.95414458,22263.0,22257.0,0.00851833]
[1674249967065,0.66131843,22262.0,22257.0,0.00851833]
[1674249967315,0.95865058,22261.0,22257.0,0.00851833]
[1674249967568,0.51020043,22260.0,22257.0,0.00851833]
[1674249967818,0.479495,22259.0,22257.0,0.00851833]
[1674249968088,0.306162,22258.0,22257.0,0.00851833]
[1674249968356,0.94565758,22258.0,22257.0,0.00851833]
[1674249968575,1.17263515,22258.0,22257.0,0.00851833]
[1674249968831,0.87263515,22258.0,22257.0,0.00851833]
[1674249969084,1.02263515,22258.0,22257.0,0.00851833]
[1674249969645,1.78215174,22258.0,22257.0,0.00851833]
[1674249969854,1.32263515,22258.0,22257.0,8.33e-06]
[1674249970105,1.48223515,22258.0,22257.0,8.33e-06]
[1674249970358,1.48223515,22258.0,22252.0,0.0097586]
[1674249970616,0.1128,22256.0,22252.0,0.0097586]
[1674249970914,1.40326858,22255.0,22252.0,0.0097586]
[1674249971134,0.93474115,22254.0,22252.0,0.0097586]
[1674249971390,0.331128,22253.0,22252.0,0.0097586]
[1674249971648,0.78560115,22253.0,22252.0,0.0097586]
[1674249972705,0.78506128,22253.0,22252.0,0.0097586]
[1674249973587,1.15036128,22253.0,22252.0,0.0097586]
[1674249974094,1.15042128,22253.0,22252.0,0.0097586]
[1674249974602,1.15042128,22253.0,22252.0,0.0137586]
[1674249974603,1.19642128,22253.0,22252.0,0.0137586]
[1674249974868,1.34642128,22253.0,22252.0,0.0137586]
[1674249975118,1.64636128,22253.0,22252.0,0.0137586]
[1674249975368,1.34636128,22253.0,22252.0,0.0137586]
[1674249976176,1.30036128,22253.0,22252.0,0.0097586]
[1674249976384,1.34636128,22253.0,22252.0,0.0137586]
[1674249976643,1.30036128,22253.0,22252.0,0.0097586]
[1674249976891,1.34636128,22253.0,22252.0,0.0137586]
[1674249977134,1.34636128,22253.0,22252.0,0.0097586]
[1674249977427,1.34636128,22253.0,22252.0,0.0132586]
[1674249977428,1.39236128,22253.0,22252.0,0.0132586]
[1674249977666,1.60042128,22253.0,22252.0,0.0092586]
[1674249977918,1.34642128,22253.0,22252.0,0.0132586]
[1674249978178,0.69594813,22253.0,22252.0,0.0607386]
[1674249978437,0.36536,22253.0,22252.0,0.0092586]
[1674249978750,0.3653,22253.0,22252.0,0.0092586]
[1674249979184,0.4073,22253.0,22252.0,0.0132586]
[1674249979715,0.3653,22253.0,22252.0,0.0607386]
[1674249979955,0.3653,22253.0,22252.0,0.0739886]
[1674249980213,0.3653,22253.0,22251.0,0.72610923]
[1674249980462,0.36936,22253.0,22252.0,0.225]
[1674249980710,0.36936,22253.0,22252.0,0.675]
[1674249980980,0.00406,22253.0,22252.0,0.725]
[1674249981260,0.15,22262.0,22253.0,0.03687599]
[1674249981478,0.15,22262.0,22256.0,0.1119]
[1674249981713,0.15,22262.0,22257.0,0.449287]
[1674249981973,0.15,22264.0,22258.0,0.1128]
[1674249982236,0.15,22264.0,22258.0,0.562058]
[1674249982733,0.33502243,22264.0,22258.0,0.562058]
[1674249982976,0.18502243,22263.0,22258.0,0.562058]
[1674249983222,0.49155043,22262.0,22258.0,0.449258]
[1674249983519,0.15,22264.0,22257.0,0.449284]
[1674249983520,0.304644,22261.0,22257.0,0.449284]
[1674249983774,0.31415,22264.0,22258.0,0.089]
[1674249984011,0.15,22264.0,22258.0,0.538265]
[1674249984262,0.33502243,22264.0,22258.0,0.538265]
[1674249984514,0.63949558,22263.0,22256.0,0.449312]
[1674249984796,1.09205158,22262.0,22255.0,0.1124]
[1674249985067,0.002963,22256.0,22254.0,0.449346]
[1674249985302,0.51553643,22255.0,22254.0,0.449346]
[1674249985553,0.18502243,22255.0,22253.0,0.59834399]
[1674249986075,0.18502243,22255.0,22253.0,0.03687599]
[1674249986367,0.323248,22254.0,22253.0,0.03687599]
[1674249986579,0.30953,22255.0,22253.0,0.03687599]
[1674249987563,0.76400315,22255.0,22253.0,0.12487599]
[1674249987809,0.475077,22254.0,22253.0,0.11987599]
[1674249988326,0.325077,22254.0,22253.0,0.11987599]
[1674249988591,0.002963,22256.0,22253.0,0.03187599]
[1674249988592,0.321422,22255.0,22253.0,0.03187599]
[1674249989090,0.321422,22255.0,22253.0,0.09287599]
[1674249989343,0.0432,22254.0,22253.0,0.03187599]
[1674249989598,0.5096211,22254.0,22253.0,0.03187599]
[1674249989851,0.5096211,22254.0,22253.0,0.09787599]
[1674249990350,0.508803,22254.0,22253.0,0.03187599]
[1674249990611,1.35956676,22254.0,22253.0,0.03187599]
[1674249990865,1.37527615,22254.0,22253.0,0.03187599]
[1674249991129,1.07527615,22254.0,22253.0,0.03187599]
[1674249991626,1.07627615,22254.0,22253.0,0.09687599]
[1674249991879,0.524803,22254.0,22253.0,0.10387599]
[1674249992132,0.508803,22254.0,22253.0,0.03187599]
[1674249992412,0.523803,22254.0,22253.0,0.03887599]
[1674249992667,0.523803,22254.0,22253.0,0.03187599]
[1674249992668,0.508803,22254.0,22253.0,0.03187599]
[1674249992906,0.508803,22254.0,22253.0,0.03887599]
[1674249992907,0.331603,22254.0,22253.0,0.03887599]
[1674249993410,0.32211,22254.0,22253.0,0.03887599]
[1674249993665,0.015,22254.0,22253.0,0.03887599]
[1674249994014,0.015,22254.0,22253.0,0.02387599]
[1674249994186,0.317061,22254.0,22253.0,0.02387599]
[1674249994958,0.302061,22254.0,22253.0,0.01687599]
[1674249995251,0.309061,22254.0,22253.0,0.01687599]
[1674249995471,0.007,22254.0,22253.0,0.01687599]
[1674249995742,0.007,22254.0,22253.0,0.42877599]
[1674249995992,0.007,22254.0,22253.0,0.12877599]
[1674249996264,0.007,22254.0,22253.0,0.42877599]
[1674249996525,0.002963,22256.0,22253.0,0.57877599]
[1674249996763,0.007,22254.0,22253.0,0.46687599]
[1674249997013,0.007,22254.0,22253.0,1.14045299]
[1674249997262,0.007,22254.0,22253.0,1.59832999]
[1674249998018,0.007,22254.0,22253.0,1.67532999]
[1674249998019,0.001,22254.0,22253.0,1.67532999]
[1674249998270,0.002963,22256.0,22253.0,1.59832999]
[1674249998530,0.002963,22256.0,22255.0,0.2628]
[1674249998811,0.002963,22256.0,22255.0,1.574274]
[1674249999055,0.002963,22256.0,22255.0,1.582774]
[1674249999278,0.00958939,22263.0,22255.0,2.539874]
[1674249999540,0.00958939,22263.0,22262.0,0.1128]
[1674249999807,0.00958939,22263.0,22262.0,0.561995]
[1674250000320,0.00958939,22263.0,22262.0,1.068395]
[1674250000564,0.00948939,22263.0,22262.0,1.068395]